[Event "Early-Titled-Tuesday-Blitz-January-30-2024"]
[Site "Chess.com"]
[Date "2024.01.30"]
[Round "7"]
[White "dretch"]
[Black "Grossboss19"]
[Result "1-0"]
[WhiteElo "2804"]
[BlackElo "2609"]
[TimeControl "180+1"]
[EndTime "9:19:55 PST"]
[Termination "dretch won on time"]

1. d4 {[%clk 0:03:00.9]} 1... Nf6 {[%clk 0:02:56.3]} 2. c4 {[%clk 0:03:00.1]}
2... c6 {[%clk 0:02:56.1]} 3. Nf3 {[%clk 0:02:58.9]} 3... d5 {[%clk 0:02:56.5]}
4. e3 {[%clk 0:02:59.3]} 4... e6 {[%clk 0:02:54.6]} 5. Bd3 {[%clk 0:02:58.1]}
5... Nbd7 {[%clk 0:02:54.5]} 6. b3 {[%clk 0:02:57.7]} 6... b6 {[%clk 0:02:54.8]}
7. Bb2 {[%clk 0:02:55.5]} 7... Bb7 {[%clk 0:02:55]} 8. O-O {[%clk 0:02:54.1]}
8... c5 {[%clk 0:02:55.3]} 9. Nc3 {[%clk 0:02:44.9]} 9... Be7 {[%clk 0:02:51.9]}
10. Qe2 {[%clk 0:02:42.2]} 10... O-O {[%clk 0:02:51.4]} 11. Rfd1 {[%clk
0:02:34.7]} 11... a6 {[%clk 0:02:41.9]} 12. Rac1 {[%clk 0:02:29.1]} 12... Rc8
{[%clk 0:02:37]} 13. cxd5 {[%clk 0:02:26.9]} 13... cxd4 {[%clk 0:02:30]} 14.
dxe6 {[%clk 0:02:19.9]} 14... dxc3 {[%clk 0:02:28.3]} 15. exd7 {[%clk
0:02:20.1]} 15... Nxd7 {[%clk 0:02:14.6]} 16. Rxc3 {[%clk 0:02:07.1]} 16... Rxc3
{[%clk 0:02:10]} 17. Bxc3 {[%clk 0:02:06.9]} 17... Qc7 {[%clk 0:02:05.9]} 18.
Bxh7+ {[%clk 0:01:46.7]} 18... Kxh7 {[%clk 0:01:44.7]} 19. Qd3+ {[%clk
0:01:39.9]} 19... Kg8 {[%clk 0:01:40.6]} 20. Qxd7 {[%clk 0:01:37]} 20... Qxc3
{[%clk 0:01:30.6]} 21. Qxb7 {[%clk 0:01:33]} 21... Bc5 {[%clk 0:01:26.7]} 22.
Qxa6 {[%clk 0:01:29.9]} 22... Qc2 {[%clk 0:01:25.9]} 23. Rd2 {[%clk 0:01:27.8]}
23... Qc1+ {[%clk 0:01:14.3]} 24. Qf1 {[%clk 0:01:27.4]} 24... Qc3 {[%clk
0:01:14.8]} 25. Qd3 {[%clk 0:01:23.5]} 25... Qa1+ {[%clk 0:01:13.7]} 26. Qf1
{[%clk 0:01:17.7]} 26... Qc3 {[%clk 0:01:13.5]} 27. Qd1 {[%clk 0:01:17.7]} 27...
g6 {[%clk 0:01:10.3]} 28. Rd7 {[%clk 0:01:14.3]} 28... Qb2 {[%clk 0:01:05.4]}
29. a4 {[%clk 0:01:11.7]} 29... Rc8 {[%clk 0:01:01.4]} 30. h4 {[%clk 0:01:07.5]}
30... Bf8 {[%clk 0:00:56.6]} 31. Rd2 {[%clk 0:01:03.2]} 31... Qa3 {[%clk
0:00:51.8]} 32. Kh2 {[%clk 0:00:35.5]} 32... Rc1 {[%clk 0:00:49.6]} 33. Qe2
{[%clk 0:00:35.4]} 33... Qxb3 {[%clk 0:00:48.6]} 34. Qb5 {[%clk 0:00:30]} 34...
Qxb5 {[%clk 0:00:38.6]} 35. axb5 {[%clk 0:00:29.7]} 35... Rb1 {[%clk 0:00:39.3]}
36. Rd5 {[%clk 0:00:28.6]} 36... Bc5 {[%clk 0:00:38.8]} 37. Nd4 {[%clk
0:00:17.4]} 37... Kf8 {[%clk 0:00:35.9]} 38. Kg3 {[%clk 0:00:17.1]} 38... Rb2
{[%clk 0:00:33.7]} 39. Kf3 {[%clk 0:00:16.6]} 39... Ke7 {[%clk 0:00:31.6]} 40.
g4 {[%clk 0:00:15.9]} 40... Rb1 {[%clk 0:00:29.7]} 41. h5 {[%clk 0:00:15.6]}
41... gxh5 {[%clk 0:00:29.9]} 42. gxh5 {[%clk 0:00:14.3]} 42... Kf6 {[%clk
0:00:27.9]} 43. Ke4 {[%clk 0:00:14.2]} 43... Rh1 {[%clk 0:00:25.5]} 44. f4
{[%clk 0:00:14.3]} 44... Rh3 {[%clk 0:00:22.7]} 45. Rf5+ {[%clk 0:00:13.4]}
45... Ke7 {[%clk 0:00:20.7]} 46. Rg5 {[%clk 0:00:13.4]} 46... Kf6 {[%clk
0:00:20.2]} 47. Rd5 {[%clk 0:00:12.8]} 47... Rh1 {[%clk 0:00:19.1]} 48. Nf3
{[%clk 0:00:12.8]} 48... Rb1 {[%clk 0:00:17.5]} 49. Rf5+ {[%clk 0:00:13]} 49...
Kg7 {[%clk 0:00:17.2]} 50. Ng5 {[%clk 0:00:11.9]} 50... Rb4+ {[%clk 0:00:10.7]}
51. Kf3 {[%clk 0:00:11.8]} 51... Rb3 {[%clk 0:00:04.6]} 52. Rxf7+ {[%clk
0:00:11.4]} 52... Kg8 {[%clk 0:00:05.3]} 53. Rb7 {[%clk 0:00:10.9]} 53... Rxe3+
{[%clk 0:00:05.5]} 54. Kg4 {[%clk 0:00:11.4]} 54... Rb3 {[%clk 0:00:04.4]} 55.
h6 {[%clk 0:00:11.6]} 55... Bd4 {[%clk 0:00:02.9]} 56. h7+ {[%clk 0:00:11.5]}
56... Kf8 {[%clk 0:00:02.8]} 57. Ne6+ {[%clk 0:00:11.8]} 1-0

[Event "Early-Titled-Tuesday-Blitz-January-30-2024"]
[Site "Chess.com"]
[Date "2024.01.30"]
[Round "7"]
[White "MightyGMpretender"]
[Black "AldokhinIvan"]
[Result "0-1"]
[WhiteElo "2814"]
[BlackElo "2658"]
[TimeControl "180+1"]
[EndTime "9:19:56 PST"]
[Termination "AldokhinIvan won on time"]

1. Nf3 {[%clk 0:03:00.9]} 1... Nf6 {[%clk 0:02:59.4]} 2. c4 {[%clk 0:03:01.1]}
2... g6 {[%clk 0:03:00]} 3. Nc3 {[%clk 0:02:59.9]} 3... Bg7 {[%clk 0:03:00.6]}
4. e4 {[%clk 0:03:00.4]} 4... d6 {[%clk 0:03:01]} 5. d4 {[%clk 0:03:01]} 5...
O-O {[%clk 0:03:01.8]} 6. h3 {[%clk 0:03:01.7]} 6... Nc6 {[%clk 0:03:02.2]} 7.
d5 {[%clk 0:03:01]} 7... Nb4 {[%clk 0:03:02.4]} 8. a3 {[%clk 0:02:55.2]} 8...
Na6 {[%clk 0:03:02.2]} 9. Bd3 {[%clk 0:02:55.8]} 9... e6 {[%clk 0:03:02.4]} 10.
O-O {[%clk 0:02:55.5]} 10... exd5 {[%clk 0:03:02.5]} 11. cxd5 {[%clk 0:02:55.7]}
11... Nc5 {[%clk 0:03:02.7]} 12. Bc2 {[%clk 0:02:56]} 12... a5 {[%clk
0:03:02.5]} 13. Re1 {[%clk 0:02:50.7]} 13... Bd7 {[%clk 0:02:57.4]} 14. Be3
{[%clk 0:02:47.8]} 14... Na6 {[%clk 0:02:34.9]} 15. Bd4 {[%clk 0:02:46.3]} 15...
Re8 {[%clk 0:02:22.6]} 16. Qd2 {[%clk 0:02:40.8]} 16... Nh5 {[%clk 0:02:06]} 17.
Bxg7 {[%clk 0:02:39.5]} 17... Kxg7 {[%clk 0:02:02.5]} 18. b4 {[%clk 0:02:36.9]}
18... axb4 {[%clk 0:01:59.9]} 19. axb4 {[%clk 0:02:37.1]} 19... Qf6 {[%clk
0:01:56.3]} 20. Rab1 {[%clk 0:02:34]} 20... Bxh3 {[%clk 0:01:51.2]} 21. Qd4
{[%clk 0:02:30.7]} 21... Bd7 {[%clk 0:01:35.4]} 22. Qxf6+ {[%clk 0:02:29.9]}
22... Kxf6 {[%clk 0:01:30.1]} 23. Red1 {[%clk 0:02:20.8]} 23... Nf4 {[%clk
0:01:27.2]} 24. g3 {[%clk 0:02:18.1]} 24... Bg4 {[%clk 0:01:10.7]} 25. gxf4
{[%clk 0:02:18.3]} 25... Bxf3 {[%clk 0:01:10.2]} 26. Rd4 {[%clk 0:02:15.6]}
26... g5 {[%clk 0:01:05]} 27. fxg5+ {[%clk 0:02:09]} 27... Kxg5 {[%clk
0:01:02.4]} 28. Kf1 {[%clk 0:02:09.5]} 28... Re5 {[%clk 0:00:55.6]} 29. Ke1
{[%clk 0:02:09.3]} 29... Kf4 {[%clk 0:00:53.8]} 30. Kd2 {[%clk 0:02:08.2]} 30...
Rg8 {[%clk 0:00:54]} 31. Ne2+ {[%clk 0:01:56.1]} 31... Bxe2 {[%clk 0:00:42.8]}
32. Kxe2 {[%clk 0:01:56]} 32... Rh5 {[%clk 0:00:38.4]} 33. Rb3 {[%clk 0:01:42]}
33... Ke5 {[%clk 0:00:29.5]} 34. Rd1 {[%clk 0:01:35.9]} 34... Rg4 {[%clk
0:00:27.8]} 35. Bb1 {[%clk 0:00:56.2]} 35... Rh2 {[%clk 0:00:26.5]} 36. Rf3
{[%clk 0:00:55.1]} 36... Rf4 {[%clk 0:00:26.2]} 37. Rxf4 {[%clk 0:00:38.2]}
37... Kxf4 {[%clk 0:00:27.1]} 38. Rg1 {[%clk 0:00:36.2]} 38... Rh3 {[%clk
0:00:19.4]} 39. Rg7 {[%clk 0:00:35]} 39... Ke5 {[%clk 0:00:06.1]} 40. Rxf7
{[%clk 0:00:33.3]} 40... Kd4 {[%clk 0:00:06.4]} 41. b5 {[%clk 0:00:15.4]} 41...
Nc5 {[%clk 0:00:06.3]} 42. Rxc7 {[%clk 0:00:15.8]} 42... h5 {[%clk 0:00:06]} 43.
Rh7 {[%clk 0:00:11.5]} 43... h4 {[%clk 0:00:06.1]} 44. Rh6 {[%clk 0:00:11.6]}
44... Rb3 {[%clk 0:00:05.1]} 45. Bc2 {[%clk 0:00:09.9]} 45... Rb2 {[%clk
0:00:05.3]} 46. Kd1 {[%clk 0:00:10.1]} 46... Kc3 {[%clk 0:00:05.5]} 47. Rxh4
{[%clk 0:00:03.7]} 47... Rxc2 {[%clk 0:00:04.4]} 48. f3 {[%clk 0:00:03.6]} 48...
Nd3 {[%clk 0:00:04.1]} 0-1

[Event "Early-Titled-Tuesday-Blitz-January-30-2024"]
[Site "Chess.com"]
[Date "2024.01.30"]
[Round "7"]
[White "mbojan"]
[Black "Njal28"]
[Result "0-1"]
[WhiteElo "2874"]
[BlackElo "3046"]
[TimeControl "180+1"]
[EndTime "9:19:57 PST"]
[Termination "Njal28 won by checkmate"]

1. a3 {[%clk 0:03:00.9]} 1... d5 {[%clk 0:02:59.3]} 2. e3 {[%clk 0:02:58.3]}
2... Nf6 {[%clk 0:02:58.8]} 3. c4 {[%clk 0:02:58.2]} 3... c6 {[%clk 0:02:57.1]}
4. Nf3 {[%clk 0:02:56.8]} 4... Bg4 {[%clk 0:02:53.5]} 5. Qb3 {[%clk 0:02:53.7]}
5... Qc7 {[%clk 0:02:52.5]} 6. Nc3 {[%clk 0:02:49]} 6... e6 {[%clk 0:02:52.6]}
7. d4 {[%clk 0:02:48]} 7... Nbd7 {[%clk 0:02:51.3]} 8. Bd2 {[%clk 0:02:47.1]}
8... Bd6 {[%clk 0:02:49.7]} 9. Rc1 {[%clk 0:02:47.4]} 9... Qb8 {[%clk
0:02:47.2]} 10. Bd3 {[%clk 0:02:31.8]} 10... O-O {[%clk 0:02:46.3]} 11. e4
{[%clk 0:02:31.3]} 11... Bxf3 {[%clk 0:02:21.8]} 12. gxf3 {[%clk 0:02:31.6]}
12... c5 {[%clk 0:02:22.6]} 13. e5 {[%clk 0:02:10.4]} 13... cxd4 {[%clk
0:02:22.2]} 14. exf6 {[%clk 0:02:10.4]} 14... dxc3 {[%clk 0:02:09.7]} 15. Bxc3
{[%clk 0:02:10.7]} 15... Nc5 {[%clk 0:01:38.1]} 16. Qc2 {[%clk 0:02:05.7]} 16...
g6 {[%clk 0:01:38.7]} 17. Be2 {[%clk 0:01:26.5]} 17... Rd8 {[%clk 0:01:28.2]}
18. Bd4 {[%clk 0:01:14.3]} 18... Nd7 {[%clk 0:01:22.8]} 19. cxd5 {[%clk
0:01:14]} 19... exd5 {[%clk 0:01:23.3]} 20. Qd2 {[%clk 0:01:12]} 20... Be5
{[%clk 0:01:20.1]} 21. Qe3 {[%clk 0:00:43.7]} 21... Re8 {[%clk 0:01:13]} 22.
Bxe5 {[%clk 0:00:43.7]} 22... Rxe5 {[%clk 0:01:10.1]} 23. Qd4 {[%clk 0:00:44.1]}
23... Nxf6 {[%clk 0:01:08.5]} 24. Kf1 {[%clk 0:00:43.5]} 24... Qd6 {[%clk
0:01:05.4]} 25. Bd3 {[%clk 0:00:43.8]} 25... Nh5 {[%clk 0:01:02.7]} 26. h4
{[%clk 0:00:42.5]} 26... Rae8 {[%clk 0:01:01.2]} 27. b4 {[%clk 0:00:34.7]} 27...
Nf4 {[%clk 0:00:58.1]} 28. Bb5 {[%clk 0:00:23.1]} 28... Rd8 {[%clk 0:00:42.1]}
29. h5 {[%clk 0:00:11.6]} 29... Qf6 {[%clk 0:00:37.1]} 30. Qd2 {[%clk
0:00:09.5]} 30... Rxh5 {[%clk 0:00:34.6]} 31. Rxh5 {[%clk 0:00:09.4]} 31... Nxh5
{[%clk 0:00:35.5]} 32. Qe3 {[%clk 0:00:07]} 32... Qh4 {[%clk 0:00:32.8]} 33. Ke2
{[%clk 0:00:05.5]} 33... Nf4+ {[%clk 0:00:29.4]} 34. Kd2 {[%clk 0:00:06.1]}
34... Ne6 {[%clk 0:00:29.8]} 35. Bd3 {[%clk 0:00:05.2]} 35... d4 {[%clk
0:00:29.2]} 36. Qe2 {[%clk 0:00:05.3]} 36... Qg5+ {[%clk 0:00:29]} 37. Kd1
{[%clk 0:00:05.2]} 37... Nf4 {[%clk 0:00:28.8]} 38. Qf1 {[%clk 0:00:03]} 38...
Re8 {[%clk 0:00:26.4]} 39. Rc7 {[%clk 0:00:02]} 39... Qd5 {[%clk 0:00:22.3]} 40.
Be4 {[%clk 0:00:01.6]} 40... Qb3+ {[%clk 0:00:22.3]} 41. Kc1 {[%clk 0:00:01.4]}
41... Qxa3+ {[%clk 0:00:22.4]} 42. Kb1 {[%clk 0:00:02.2]} 42... Qxb4+ {[%clk
0:00:22.3]} 43. Kc1 {[%clk 0:00:02.6]} 43... d3 {[%clk 0:00:19.7]} 44. Qd1
{[%clk 0:00:02.6]} 44... Qa5 {[%clk 0:00:17.6]} 45. Rc4 {[%clk 0:00:01.5]} 45...
Re7 {[%clk 0:00:13.9]} 46. Qb3 {[%clk 0:00:01.7]} 46... Rc7 {[%clk 0:00:13.7]}
47. Rxc7 {[%clk 0:00:01.7]} 47... Qxc7+ {[%clk 0:00:14.6]} 48. Kd2 {[%clk
0:00:02.2]} 48... Qc2+ {[%clk 0:00:11.2]} 49. Qxc2 {[%clk 0:00:02.6]} 49... dxc2
{[%clk 0:00:12.1]} 50. Bxb7 {[%clk 0:00:03.4]} 50... h5 {[%clk 0:00:11.4]} 51.
Kxc2 {[%clk 0:00:03.6]} 51... h4 {[%clk 0:00:11.9]} 52. Bc8 {[%clk 0:00:04.4]}
52... h3 {[%clk 0:00:12.1]} 53. Bxh3 {[%clk 0:00:04.6]} 53... Nxh3 {[%clk
0:00:13]} 54. f4 {[%clk 0:00:05.2]} 54... Nxf4 {[%clk 0:00:13.4]} 55. Kc3 {[%clk
0:00:05.5]} 55... Ne6 {[%clk 0:00:14.3]} 56. Kb4 {[%clk 0:00:06.4]} 56... Kg7
{[%clk 0:00:14.9]} 57. Ka5 {[%clk 0:00:07.3]} 57... Kf6 {[%clk 0:00:15.8]} 58.
f4 {[%clk 0:00:08.2]} 58... Kf5 {[%clk 0:00:16.7]} 59. Ka6 {[%clk 0:00:08.9]}
59... Kxf4 {[%clk 0:00:17.6]} 60. Kxa7 {[%clk 0:00:09.8]} 60... g5 {[%clk
0:00:18.4]} 61. Kb8 {[%clk 0:00:10.7]} 61... g4 {[%clk 0:00:19.3]} 62. Kc8
{[%clk 0:00:11.2]} 62... g3 {[%clk 0:00:20.2]} 63. Kb8 {[%clk 0:00:12.1]} 63...
f5 {[%clk 0:00:20.8]} 64. Kb7 {[%clk 0:00:13]} 64... Ng5 {[%clk 0:00:21.5]} 65.
Kb6 {[%clk 0:00:13.9]} 65... g2 {[%clk 0:00:22.2]} 66. Kc6 {[%clk 0:00:14.8]}
66... g1=Q {[%clk 0:00:22.8]} 67. Kd5 {[%clk 0:00:15.7]} 67... Qe3 {[%clk
0:00:23]} 68. Kc4 {[%clk 0:00:16.6]} 68... Kg4 {[%clk 0:00:23.3]} 69. Kd5 {[%clk
0:00:17.5]} 69... f4 {[%clk 0:00:23.9]} 70. Kd6 {[%clk 0:00:18.4]} 70... f3
{[%clk 0:00:24.5]} 71. Kc6 {[%clk 0:00:19.3]} 71... Qe5 {[%clk 0:00:24.7]} 72.
Kd7 {[%clk 0:00:20.2]} 72... Qf6 {[%clk 0:00:24.4]} 73. Kc8 {[%clk 0:00:20.8]}
73... Qe7 {[%clk 0:00:24.7]} 74. Kb8 {[%clk 0:00:21.7]} 74... Qd7 {[%clk
0:00:25.2]} 75. Ka8 {[%clk 0:00:22.6]} 75... f2 {[%clk 0:00:25.7]} 76. Kb8
{[%clk 0:00:23.5]} 76... f1=Q {[%clk 0:00:25.6]} 77. Ka8 {[%clk 0:00:24.4]}
77... Qf8# {[%clk 0:00:26.2]} 0-1

[Event "Early-Titled-Tuesday-Blitz-January-30-2024"]
[Site "Chess.com"]
[Date "2024.01.30"]
[Round "7"]
[White "Orest_Vovk"]
[Black "Adar_07"]
[Result "1-0"]
[WhiteElo "2507"]
[BlackElo "2633"]
[TimeControl "180+1"]
[EndTime "9:19:57 PST"]
[Termination "Orest_Vovk won by resignation"]

1. g4 {[%clk 0:03:00.9]} 1... d6 {[%clk 0:02:57.8]} 2. h3 {[%clk 0:03:01.1]}
2... c5 {[%clk 0:02:57.7]} 3. Bg2 {[%clk 0:03:01.7]} 3... Nc6 {[%clk 0:02:58.4]}
4. Nf3 {[%clk 0:02:58.9]} 4... e5 {[%clk 0:02:58.3]} 5. Nc3 {[%clk 0:02:56.9]}
5... h5 {[%clk 0:02:57.3]} 6. g5 {[%clk 0:02:56.1]} 6... d5 {[%clk 0:02:56.8]}
7. d3 {[%clk 0:02:53]} 7... Nge7 {[%clk 0:02:54.9]} 8. Nh4 {[%clk 0:02:52.5]}
8... Be6 {[%clk 0:02:50.2]} 9. e4 {[%clk 0:02:50.6]} 9... d4 {[%clk 0:02:48.7]}
10. Ne2 {[%clk 0:02:50.6]} 10... Ng6 {[%clk 0:02:48]} 11. Nxg6 {[%clk
0:02:49.5]} 11... fxg6 {[%clk 0:02:48.9]} 12. f4 {[%clk 0:02:44.9]} 12... Bd6
{[%clk 0:02:49.1]} 13. O-O {[%clk 0:02:42.4]} 13... Qd7 {[%clk 0:02:43.2]} 14.
Kh2 {[%clk 0:02:22.1]} 14... O-O-O {[%clk 0:02:40.3]} 15. fxe5 {[%clk
0:02:16.6]} 15... Nxe5 {[%clk 0:02:37.4]} 16. Bf4 {[%clk 0:02:13.4]} 16... Rdf8
{[%clk 0:02:36.8]} 17. Qd2 {[%clk 0:02:12.6]} 17... Qe7 {[%clk 0:02:35.8]} 18.
Kh1 {[%clk 0:02:00.3]} 18... Qd7 {[%clk 0:02:27.8]} 19. Ng1 {[%clk 0:01:53.3]}
19... Rf7 {[%clk 0:02:25.8]} 20. Bh2 {[%clk 0:01:45.1]} 20... Rhf8 {[%clk
0:02:24.9]} 21. Rxf7 {[%clk 0:01:44.1]} 21... Rxf7 {[%clk 0:02:25.8]} 22. Rf1
{[%clk 0:01:43.3]} 22... Rxf1 {[%clk 0:02:24.5]} 23. Bxf1 {[%clk 0:01:43.3]}
23... Nf7 {[%clk 0:02:13.2]} 24. h4 {[%clk 0:01:21.1]} 24... Qc7 {[%clk
0:01:51]} 25. Bh3 {[%clk 0:01:09.3]} 25... Bxh3 {[%clk 0:01:49.5]} 26. Nxh3
{[%clk 0:01:09.3]} 26... Qd7 {[%clk 0:01:46.1]} 27. Qg2 {[%clk 0:00:57.2]} 27...
Bxh2 {[%clk 0:01:44.6]} 28. Kxh2 {[%clk 0:00:54.8]} 28... Ne5 {[%clk 0:01:43.3]}
29. Qg3 {[%clk 0:00:39.4]} 29... Ng4+ {[%clk 0:01:35.4]} 30. Kg1 {[%clk
0:00:38.3]} 30... Ne3 {[%clk 0:01:32]} 31. c3 {[%clk 0:00:28.3]} 31... dxc3
{[%clk 0:00:55.2]} 32. Qxe3 {[%clk 0:00:25.6]} 32... cxb2 {[%clk 0:00:55]} 33.
Qxc5+ {[%clk 0:00:23.3]} 33... Qc7 {[%clk 0:00:51.6]} 34. Qf8+ {[%clk
0:00:21.8]} 34... Qd8 {[%clk 0:00:52]} 35. Qc5+ {[%clk 0:00:19.4]} 35... Qc7
{[%clk 0:00:50.8]} 36. Qf8+ {[%clk 0:00:19.2]} 36... Kd7 {[%clk 0:00:50.9]} 37.
Qxg7+ {[%clk 0:00:19]} 37... Kc6 {[%clk 0:00:50.8]} 38. Qxb2 {[%clk 0:00:19.9]}
38... Qg3+ {[%clk 0:00:50.7]} 39. Qg2 {[%clk 0:00:19.2]} 39... Qxh4 {[%clk
0:00:47.7]} 40. Nf2 {[%clk 0:00:16]} 40... Qf4 {[%clk 0:00:46.4]} 41. d4 {[%clk
0:00:15.5]} 41... Qc1+ {[%clk 0:00:42.3]} 42. Kh2 {[%clk 0:00:15.6]} 42... Qd2
{[%clk 0:00:39.7]} 43. d5+ {[%clk 0:00:15.6]} 43... Kd7 {[%clk 0:00:38.2]} 44.
Qf3 {[%clk 0:00:15]} 44... Qxg5 {[%clk 0:00:37.8]} 45. Nd3 {[%clk 0:00:13.8]}
45... Qd2+ {[%clk 0:00:37.1]} 46. Kg3 {[%clk 0:00:12.3]} 46... Qg5+ {[%clk
0:00:37.2]} 47. Kf2 {[%clk 0:00:12.5]} 47... Ke7 {[%clk 0:00:37]} 48. e5 {[%clk
0:00:11]} 48... Qd2+ {[%clk 0:00:36.6]} 49. Kg3 {[%clk 0:00:11.3]} 49... Qg5+
{[%clk 0:00:37.3]} 50. Kf2 {[%clk 0:00:10.8]} 50... Qd2+ {[%clk 0:00:37]} 51.
Kf1 {[%clk 0:00:11.1]} 51... Qg5 {[%clk 0:00:34.1]} 52. d6+ {[%clk 0:00:09.5]}
52... Ke6 {[%clk 0:00:31.5]} 53. Qe4 {[%clk 0:00:08.9]} 53... b6 {[%clk
0:00:18.9]} 54. Nf4+ {[%clk 0:00:08.4]} 54... Kf7 {[%clk 0:00:19]} 55. Qb7+
{[%clk 0:00:07.4]} 55... Kg8 {[%clk 0:00:19.4]} 56. Qd5+ {[%clk 0:00:07]} 56...
Kh8 {[%clk 0:00:17.1]} 57. Qe4 {[%clk 0:00:07.1]} 57... Qg4 {[%clk 0:00:11.2]}
58. Nxg6+ {[%clk 0:00:06.4]} 58... Qxg6 {[%clk 0:00:10.6]} 1-0

[Event "Early-Titled-Tuesday-Blitz-January-30-2024"]
[Site "Chess.com"]
[Date "2024.01.30"]
[Round "7"]
[White "Onthequiet"]
[Black "NelsonLinda"]
[Result "1/2-1/2"]
[WhiteElo "2409"]
[BlackElo "2569"]
[TimeControl "180+1"]
[EndTime "9:19:57 PST"]
[Termination "Game drawn by repetition"]

1. d4 {[%clk 0:03:00.9]} 1... Nf6 {[%clk 0:02:59.3]} 2. Nf3 {[%clk 0:03:00.7]}
2... g6 {[%clk 0:02:56.7]} 3. Bg5 {[%clk 0:03:01.1]} 3... Bg7 {[%clk 0:02:56.9]}
4. Nbd2 {[%clk 0:03:01.3]} 4... d5 {[%clk 0:02:54.2]} 5. c3 {[%clk 0:03:01.7]}
5... O-O {[%clk 0:02:53.2]} 6. e3 {[%clk 0:03:02.1]} 6... c5 {[%clk 0:02:53.7]}
7. Be2 {[%clk 0:03:00.3]} 7... Qb6 {[%clk 0:02:53.6]} 8. Qb3 {[%clk 0:02:59.5]}
8... cxd4 {[%clk 0:02:53.3]} 9. Qxb6 {[%clk 0:02:58.7]} 9... axb6 {[%clk
0:02:53.7]} 10. exd4 {[%clk 0:02:58.6]} 10... h6 {[%clk 0:02:48.2]} 11. Bh4
{[%clk 0:02:57.8]} 11... Nc6 {[%clk 0:02:48.4]} 12. O-O {[%clk 0:02:56.9]} 12...
Bf5 {[%clk 0:02:47.8]} 13. Rfe1 {[%clk 0:02:56.4]} 13... Rfe8 {[%clk 0:02:47.3]}
14. Bb5 {[%clk 0:02:56.1]} 14... Kf8 {[%clk 0:02:44]} 15. Ne5 {[%clk 0:02:53.4]}
15... Rec8 {[%clk 0:02:44.1]} 16. Bxf6 {[%clk 0:02:46.4]} 16... Bxf6 {[%clk
0:02:42.9]} 17. f4 {[%clk 0:02:35.6]} 17... h5 {[%clk 0:02:25.1]} 18. a4 {[%clk
0:02:31.9]} 18... Kg7 {[%clk 0:02:21]} 19. Nf1 {[%clk 0:02:30.3]} 19... Na5
{[%clk 0:02:07.4]} 20. Ne3 {[%clk 0:02:29.8]} 20... Be4 {[%clk 0:02:05.9]} 21.
Nd7 {[%clk 0:02:20.7]} 21... Nb3 {[%clk 0:02:00.7]} 22. Nxb6 {[%clk 0:02:17.3]}
22... Nxa1 {[%clk 0:02:00.4]} 23. Nxc8 {[%clk 0:02:13.8]} 23... Rxc8 {[%clk
0:01:38.9]} 24. Rxa1 {[%clk 0:02:10.6]} 24... e6 {[%clk 0:01:39]} 25. g3 {[%clk
0:02:07]} 25... g5 {[%clk 0:01:38.4]} 26. fxg5 {[%clk 0:01:50.9]} 26... Bxg5
{[%clk 0:01:39.3]} 27. Kf2 {[%clk 0:01:50.9]} 27... h4 {[%clk 0:01:36]} 28. g4
{[%clk 0:01:46.3]} 28... h3 {[%clk 0:01:05]} 29. Ke2 {[%clk 0:01:44.1]} 29...
Bf4 {[%clk 0:01:03.7]} 30. Bd3 {[%clk 0:01:40.9]} 30... Bg2 {[%clk 0:00:14.5]}
31. Nxg2 {[%clk 0:01:29.8]} 31... hxg2 {[%clk 0:00:15.4]} 32. Rg1 {[%clk
0:01:28.8]} 32... Rh8 {[%clk 0:00:14.2]} 33. Rxg2 {[%clk 0:01:29.2]} 33... Rxh2
{[%clk 0:00:13]} 34. Rxh2 {[%clk 0:01:20.6]} 34... Bxh2 {[%clk 0:00:13.9]} 35.
a5 {[%clk 0:01:13.5]} 35... Kf6 {[%clk 0:00:11.4]} 36. Bb5 {[%clk 0:01:12.9]}
36... Ke7 {[%clk 0:00:10.3]} 37. Kd3 {[%clk 0:01:09.3]} 37... Bf4 {[%clk
0:00:08.9]} 38. b3 {[%clk 0:01:08.2]} 38... Bc7 {[%clk 0:00:07.5]} 39. a6 {[%clk
0:01:06.7]} 39... bxa6 {[%clk 0:00:06.8]} 40. Bxa6 {[%clk 0:01:07.4]} 40... Kd6
{[%clk 0:00:05.2]} 41. Bb5 {[%clk 0:01:06.1]} 41... Ba5 {[%clk 0:00:04.4]} 42.
c4 {[%clk 0:01:01.8]} 42... dxc4+ {[%clk 0:00:04.4]} 43. bxc4 {[%clk 0:01:02.3]}
43... Bd8 {[%clk 0:00:04.7]} 44. c5+ {[%clk 0:01:01.4]} 44... Kc7 {[%clk
0:00:05]} 45. Be8 {[%clk 0:00:58.8]} 45... f5 {[%clk 0:00:04.8]} 46. Bf7 {[%clk
0:00:53.1]} 46... fxg4 {[%clk 0:00:04.2]} 47. Bxe6 {[%clk 0:00:53.6]} 47... g3
{[%clk 0:00:04.6]} 48. Bh3 {[%clk 0:00:54]} 48... Bf6 {[%clk 0:00:04.5]} 49. d5
{[%clk 0:00:50.1]} 49... Be7 {[%clk 0:00:04.8]} 50. Kc4 {[%clk 0:00:50.3]} 50...
Bf8 {[%clk 0:00:05.2]} 51. Bg2 {[%clk 0:00:41.6]} 51... Be7 {[%clk 0:00:05.7]}
52. Kd4 {[%clk 0:00:40.2]} 52... Bf8 {[%clk 0:00:05.9]} 53. Kc4 {[%clk
0:00:32.5]} 53... Be7 {[%clk 0:00:05.9]} 54. Kb5 {[%clk 0:00:32.8]} 54... Bf8
{[%clk 0:00:06.2]} 55. Bf3 {[%clk 0:00:32.3]} 55... Be7 {[%clk 0:00:06.5]} 56.
Be4 {[%clk 0:00:29.4]} 56... Bf8 {[%clk 0:00:07]} 57. d6+ {[%clk 0:00:28.9]}
57... Bxd6 {[%clk 0:00:07.2]} 58. cxd6+ {[%clk 0:00:29.4]} 58... Kxd6 {[%clk
0:00:08.1]} 59. Bg2 {[%clk 0:00:29]} 59... Ke5 {[%clk 0:00:08.8]} 60. Bc6 {[%clk
0:00:28.6]} 60... Kd4 {[%clk 0:00:08.8]} 61. Bb7 {[%clk 0:00:28.3]} 61... Ke5
{[%clk 0:00:08.7]} 62. Bc6 {[%clk 0:00:28.2]} 62... Kd4 {[%clk 0:00:09.6]} 63.
Bb7 {[%clk 0:00:28.2]} 63... Ke3 {[%clk 0:00:10.1]} 64. Bc6 {[%clk 0:00:28]}
64... Kf4 {[%clk 0:00:10.7]} 65. Bb7 {[%clk 0:00:27.9]} 65... Ke5 {[%clk
0:00:11.1]} 66. Bc6 {[%clk 0:00:27.8]} 1/2-1/2